bitfinex/quotes_SOLUSD_20250204
["timestamp","ask_amount","ask_price","bid_price","bid_amount"]
[1738710645641,6.8063,205.69,205.54,6.59119051]
[1738710645642,13.78831853,205.55,205.54,6.59119051]
[1738710645951,14.78831853,205.55,205.54,6.59119051]
[1738710646334,50.66349209,205.55,205.54,6.59119051]
[1738710646654,80.8,205.66,205.54,6.59119051]
[1738710646655,36.87517356,205.59,205.54,6.59119051]
[1738710646832,36.87517356,205.61,205.55,1.0]
[1738710647029,36.87517356,205.67,205.6,1.0]
[1738710647238,36.87517356,205.67,205.62,1.0]
[1738710647438,36.87517356,205.69,205.64,21.0]
[1738710647746,36.87517356,205.73,205.69,1.0]
[1738710647951,36.87517356,205.77,205.71,1.0]
[1738710648132,36.87517356,205.74,205.71,1.0]
[1738710648334,36.87517356,205.74,205.66,36.87517356]
[1738710648335,13.53733853,205.71,205.66,1.0]
[1738710648652,13.41184853,205.71,205.68,1.0]
[1738710648832,0.12549,205.7,205.68,1.0]
[1738710649038,37.12615356,205.74,205.71,1.0]
[1738710649343,36.87517356,205.76,205.71,1.0]
[1738710649544,36.87517356,205.78,205.73,1.0]
[1738710649757,36.87517356,205.8,205.75,20.0]
[1738710649931,0.09307861,205.77,205.75,20.0]
[1738710650132,50.53800209,205.76,205.72,1.0]
[1738710650582,0.25098,205.72,205.67,1.0]
[1738710650878,13.78831853,205.68,205.62,6.34]
[1738710651042,36.87517356,205.65,205.64,1.0]
[1738710651245,4.86,205.76,205.66,1.0]
[1738710651246,36.87517356,205.67,205.66,1.0]
[1738710651646,36.87517356,205.71,205.66,1.0]
[1738710652070,80.89307861,205.77,205.7,1.0]
[1738710652071,36.87517356,205.73,205.7,1.0]
[1738710652450,36.87517356,205.75,205.72,1.0]
[1738710652646,0.09307861,205.77,205.74,1.0]
[1738710652852,0.09307861,205.77,205.76,1.0]
[1738710653051,0.09307861,205.77,205.76,37.87517356]
[1738710654763,0.10301236,205.78,205.76,355.89007356]
[1738710654973,0.10301236,205.78,205.77,10.5997]
[1738710655153,2.252e-05,205.79,205.78,1.0]
[1738710655353,2.252e-05,205.79,205.78,37.87517356]
[1738710655958,6.741e-05,205.8,205.78,37.87517356]
[1738710656481,6.741e-05,205.8,205.79,37.00066356]
[1738710656663,6.741e-05,205.8,205.79,38.00066356]
[1738710656977,3.4e-06,205.81,205.8,1.0]
[1738710657480,3.4e-06,205.81,205.8,37.87517356]
[1738710657682,13.66282853,205.93,205.83,20.0]
[1738710657882,0.12549,205.93,205.89,36.87517356]
[1738710658082,13.41184853,205.96,205.89,36.87517356]
[1738710658258,13.41184853,205.96,205.9,1.0]
[1738710658578,13.41184853,205.96,205.92,1.0]
[1738710658788,0.25098,205.95,205.92,1.0]
[1738710658961,0.25098,205.95,205.85,36.87517356]
[1738710658962,36.87517356,205.93,205.85,36.87517356]
[1738710659167,13.66282853,205.92,205.85,36.87517356]
[1738710659371,0.25098,205.9,205.83,36.87517356]
[1738710659575,13.66282853,205.9,205.83,36.87517356]
[1738710659787,13.41184853,205.9,205.85,36.87517356]
[1738710659958,36.90517356,205.93,205.85,36.87517356]
[1738710660158,0.03,205.93,205.87,36.87517356]
[1738710660777,0.03,205.93,205.89,36.87517356]
[1738710661100,0.03,205.93,205.91,36.87517356]
[1738710661630,0.03,205.93,205.89,36.87517356]
[1738710661890,20.0,205.88,205.81,0.72842769]
[1738710662091,36.87517356,205.84,205.78,4.8595]
[1738710662298,36.87517356,205.82,205.76,4.8598]
[1738710662475,36.87517356,205.86,205.77,36.87517356]
[1738710662661,13.78831853,205.85,205.75,4.8602]
[1738710662868,13.78831853,205.87,205.86,20.0]
[1738710663068,0.03,205.93,205.86,56.87517356]
[1738710663692,36.87517356,205.92,205.84,36.87517356]
[1738710663895,0.03,205.93,205.86,36.87517356]
[1738710664085,20.0,205.89,205.82,36.87517356]
[1738710664274,36.87517356,205.88,205.79,36.87517356]
[1738710664599,36.87517356,205.88,205.82,20.0]
[1738710664774,36.90517356,205.93,205.84,36.87517356]
[1738710664986,0.03,205.93,205.86,36.87517356]
[1738710665176,0.03,205.93,205.88,36.87517356]
[1738710665988,0.03,205.93,205.86,56.87517356]
[1738710666289,36.90517356,205.93,205.86,56.87517356]
[1738710666485,13.41184853,205.9,205.84,4.8579]
[1738710666678,13.41184853,205.9,205.85,20.0]
[1738710666886,0.03,205.93,205.82,36.87517356]
[1738710666887,0.03,205.93,205.87,4.8574]
[1738710667109,0.03,205.93,205.85,4.8577]
[1738710667110,36.87517356,205.92,205.85,4.8577]
[1738710667412,36.87517356,205.92,205.84,24.87594573]
[1738710667901,36.87517356,205.92,205.87,20.0]
[1738710668082,0.03,205.93,205.91,20.0]
[1738710668901,0.03,205.93,205.91,4.8564]
[1738710669807,0.03,205.93,205.92,20.0]
[1738710670012,0.13672098,205.93,205.92,36.87517356]
[1738710671212,0.13672098,205.93,205.92,348.87517356]
[1738710671411,0.13672098,205.93,205.92,312.0]
[1738710672308,36.87517356,206.08,205.96,20.12549]
[1738710672473,36.87517356,206.08,205.98,36.87517356]
[1738710672674,36.87517356,206.06,205.98,36.87517356]
[1738710672877,36.87517356,206.04,205.97,5.7]
[1738710673286,36.87517356,206.06,205.98,41.72997356]
[1738710674684,36.87517356,206.08,205.98,41.72997356]
[1738710674892,8.8e-07,205.99,205.98,41.72997356]
[1738710675282,8.8e-07,205.99,205.98,353.72997356]
[1738710677403,8.8e-07,205.99,205.97,36.87517356]
[1738710677602,8.8e-07,205.99,205.96,41.73027356]
[1738710677911,8.8e-07,205.99,205.97,36.87517356]
[1738710678589,8.8e-07,205.99,205.98,36.87517356]
[1738710678787,0.03,206.14,206.0,20.0]
[1738710678987,0.03,206.14,205.98,43.21767356]
[1738710678988,0.03,206.14,206.05,73.75034712]
[1738710679305,0.03,206.14,206.13,36.87517356]
[1738710680084,0.03,206.14,206.09,36.87517356]
[1738710680283,0.03,206.14,206.11,36.87517356]
[1738710680586,0.03,206.14,206.07,41.72777356]
[1738710680787,0.03,206.14,206.09,36.87517356]
[1738710681484,0.03,206.14,206.1,36.87517356]
[1738710681680,0.03,206.14,206.12,36.87517356]
[1738710682512,0.03,206.14,206.12,37.60268687]
[1738710682686,0.03,206.14,206.12,36.87517356]
[1738710683485,0.03,206.14,206.13,4.8513]
[1738710687022,0.03,206.14,206.13,316.8513]
[1738710687517,0.03,206.14,206.13,4.8513]
[1738710688424,0.21,206.19,206.16,20.0]
[1738710688622,0.21,206.19,206.18,36.87517356]
[1738710689522,36.87517356,206.33,206.21,20.0]
[1738710689722,36.87517356,206.27,206.22,4.8491]
[1738710689924,0.10272839,206.19,206.12,36.87517356]
[1738710690126,0.10272839,206.19,206.11,4.8517]
[1738710690335,36.87517356,206.13,206.04,4.8534]
[1738710690637,13.41184853,206.17,206.04,4.8534]
[1738710690820,0.12549,206.16,206.04,4.8534]
[1738710691026,6.3887,206.18,206.04,4.8534]
[1738710691331,1.0,206.17,206.04,16.9869]
[1738710691648,36.87517356,206.05,205.98,4.9177]
[1738710691825,36.87517356,206.0,205.98,4.9177]
[1738710692001,36.87517356,206.0,205.98,0.063]
[1738710692830,36.87517356,206.03,205.98,0.063]
[1738710693043,36.87517356,206.09,206.0,36.87517356]
[1738710693209,5.8506,206.16,205.98,0.18849]
[1738710693210,36.87517356,206.05,205.98,0.18849]
[1738710693398,36.87517356,206.05,205.98,0.063]
[1738710693720,1.9416,206.01,205.98,0.063]
[1738710693930,13.41184853,205.99,205.98,0.063]
[1738710694116,14.41184853,205.99,205.98,0.063]
[1738710694319,51.28702209,205.99,205.98,0.063]
[1738710694523,50.53800209,205.99,205.98,0.063]
[1738710695407,1.0,205.96,205.85,0.063]
[1738710695611,36.87517356,205.89,205.85,0.063]
[1738710695805,1.0,205.92,205.85,0.063]
[1738710695806,36.87517356,205.87,205.85,0.063]
[1738710696222,36.87517356,205.91,205.85,0.063]
[1738710697331,36.87517356,205.89,205.85,0.063]
[1738710697551,36.87517356,205.9,205.85,0.063]
[1738710697717,36.87517356,205.86,205.85,0.063]
[1738710698410,36.87517356,205.9,205.85,0.063]
[1738710698912,36.87517356,205.86,205.85,0.063]
[1738710699830,38.81817356,205.86,205.85,0.063]
[1738710700008,53.23002209,205.86,205.77,0.063]
[1738710700205,36.87517356,205.83,205.77,0.063]
[1738710700851,36.87517356,205.79,205.77,0.063]
[1738710701037,1.0,205.78,205.77,0.063]
[1738710701218,14.41184853,205.78,205.77,0.063]
[1738710701944,17.73211853,205.78,205.77,0.063]
[1738710702418,17.73211853,205.78,205.64,36.93817356]
[1738710702419,1.0,205.7,205.64,0.063]
[1738710702626,13.41184853,205.66,205.64,0.063]
[1738710703137,37.87517356,205.67,205.64,0.063]
[1738710703333,36.87517356,205.65,205.64,0.063]
[1738710703511,36.87517356,205.74,205.64,41.80077356]
[1738710703718,36.87517356,205.74,205.66,36.87517356]
[1738710703930,36.87517356,205.72,205.64,36.93817356]
[1738710704132,36.87517356,205.66,205.64,0.063]
[1738710704441,13.41184853,205.65,205.64,0.063]
[1738710704637,14.41184853,205.65,205.64,0.063]
[1738710704815,36.87517356,205.66,205.64,0.063]
[1738710706137,13.41184853,205.65,205.64,0.063]
[1738710708036,14.41184853,205.65,205.64,0.0001]
[1738710708232,14.41184853,205.65,205.54,0.063]
[1738710708233,1.0,205.57,205.54,0.063]
[1738710708433,51.28702209,205.55,205.54,0.063]
[1738710708654,51.66349209,205.55,205.54,0.063]
[1738710708816,1.0,205.49,205.33,0.063]
[1738710709020,13.41184853,205.48,205.37,4.8691]
[1738710709220,1.0,205.42,205.33,0.063]
[1738710709641,13.41184853,205.41,205.33,0.063]
[1738710710048,0.09092821,205.36,205.33,0.063]
[1738710710556,36.96610177,205.36,205.33,0.063]
[1738710710850,0.09092821,205.36,205.35,125.98139799]
[1738710711059,0.09876509,205.4,205.38,20.0]
[1738710711345,0.09876509,205.4,205.39,36.87517356]
[1738710711660,0.09876509,205.4,205.39,41.74387356]
[1738710712953,0.09876509,205.4,205.39,36.87517356]
[1738710713129,36.97393865,205.4,205.33,0.063]
[1738710713334,36.87517356,205.36,205.33,0.063]
[1738710713624,36.87517356,205.34,205.33,0.063]
[1738710714545,36.87517356,205.36,205.33,0.063]
[1738710715745,36.87517356,205.34,205.33,0.063]
[1738710715921,1.0,205.31,205.22,36.87517356]
[1738710716124,36.87517356,205.28,205.2,36.87517356]
[1738710716322,36.87517356,205.28,205.2,41.74837356]
[1738710716742,36.87517356,205.26,205.18,36.87517356]
[1738710716943,38.82427356,205.22,205.14,36.87517356]
[1738710717161,38.82427356,205.22,205.12,23.36577831]
[1738710717162,36.87517356,205.18,205.1,41.75057356]
[1738710717524,36.87517356,205.2,205.12,36.87517356]
[1738710718263,36.87517356,205.26,205.17,36.87517356]
[1738710718437,36.87517356,205.26,205.12,0.12549]
[1738710718438,2.0,205.36,205.21,36.87517356]
[1738710718635,36.87517356,205.32,205.23,36.87517356]
[1738710718836,13.41184853,205.31,205.23,36.87517356]
[1738710719051,36.87517356,205.28,205.19,36.87517356]
[1738710719239,36.87517356,205.26,205.19,36.87517356]
[1738710720237,36.87517356,205.24,205.15,41.74937356]
[1738710720455,36.87517356,205.2,205.12,0.063]
[1738710720663,13.41184853,205.25,205.12,0.063]
[1738710720664,36.87517356,205.16,205.12,0.063]
[1738710721268,36.87517356,205.18,205.12,0.063]
[1738710721475,36.87517356,205.24,205.16,36.87517356]
[1738710721970,36.87517356,205.26,205.18,36.87517356]
[1738710722153,1.9486,205.27,205.12,0.063]
[1738710722154,36.87517356,205.24,205.15,36.87517356]
[1738710722352,13.41184853,205.21,205.13,36.87517356]
[1738710722569,36.87517356,205.18,205.12,0.063]
[1738710723336,36.87517356,205.14,205.12,0.063]
[1738710724640,13.41184853,205.13,205.12,0.063]
[1738710724852,14.41184853,205.13,205.12,0.063]
[1738710725139,14.78831853,205.13,205.12,0.063]
[1738710725343,33.66282853,205.1,205.07,0.03]
[1738710725544,36.87517356,205.08,205.07,0.03]
[1738710726349,50.53800209,205.08,205.07,0.03]
[1738710726743,50.66349209,205.08,205.07,0.03]
[1738710727253,52.61389209,205.08,205.07,0.03]
[1738710727441,20.0,205.05,205.04,0.03]
[1738710727642,70.53800209,205.05,205.04,0.03]
[1738710727853,36.87517356,205.05,205.04,0.03]
[1738710728163,1.0,205.21,205.08,9.0262]
[1738710728348,36.87517356,205.28,205.19,36.87517356]
[1738710728547,1.9484,205.29,205.19,36.87517356]
[1738710728859,1.9484,205.29,205.22,20.0]
[1738710729045,36.87517356,205.3,205.22,20.0]
[1738710729249,36.87517356,205.3,205.24,20.0]
[1738710729448,41.84263865,205.4,205.24,20.0]
[1738710729449,36.87517356,205.32,205.24,20.0]
[1738710729762,36.87517356,205.28,205.19,36.87517356]
[1738710729965,36.87517356,205.28,205.15,0.12549]
[1738710729966,0.10701631,205.25,205.21,36.87517356]
[1738710730146,0.10701631,205.25,205.2,4.8732]
[1738710730459,0.10701631,205.25,205.18,56.87517356]
[1738710730867,36.87517356,205.22,205.12,41.75027356]
[1738710731167,36.87517356,205.24,205.14,36.87517356]
[1738710731361,0.10701631,205.25,205.19,20.0]
[1738710731566,0.10701631,205.25,205.2,36.87517356]
[1738710731961,0.10701631,205.25,205.24,56.87517356]
[1738710732167,0.10701631,205.25,205.24,57.37713356]
[1738710732464,0.10701631,205.25,205.24,56.87517356]
[1738710732854,0.10701631,205.25,205.22,36.87517356]
[1738710733061,0.10701631,205.25,205.2,36.87517356]
[1738710733465,36.98218987,205.25,205.16,36.87517356]
[1738710733974,0.10701631,205.25,205.18,36.87517356]
[1738710734272,0.10701631,205.25,205.22,36.87517356]
[1738710734477,0.10701631,205.25,205.24,36.87517356]
[1738710735051,9.372e-05,205.26,205.25,0.50196]
[1738710735376,9.372e-05,205.26,205.24,36.87517356]
[1738710735675,9.372e-05,205.26,205.25,4.8721]
[1738710736846,8.216e-05,205.27,205.25,55.66108209]
[1738710737046,1.841e-05,205.3,205.29,20.50196]
[1738710737364,1.841e-05,205.3,205.27,36.87517356]
[1738710737676,1.841e-05,205.3,205.2,50.05797356]
[1738710737677,1.841e-05,205.3,205.25,36.87517356]
[1738710738081,1.841e-05,205.3,205.24,20.0]
[1738710738761,1.841e-05,205.3,205.27,36.87517356]
[1738710739773,1.841e-05,205.3,205.27,41.74657356]
[1738710739981,1.841e-05,205.3,205.29,36.87517356]
[1738710740162,1.841e-05,205.3,205.29,20.0]
[1738710740576,1.841e-05,205.3,205.29,56.87517356]
[1738710740896,1.841e-05,205.3,205.29,94.98288411]
[1738710741191,1.281e-05,205.33,205.32,0.50196]
[1738710741357,4.092e-05,205.34,205.32,37.37713356]
[1738710741948,4.092e-05,205.34,205.33,4.8702]
[1738710742591,4.092e-05,205.34,205.33,5.37216]
[1738710742796,0.03,205.54,205.4,1.0]
[1738710743085,0.03,205.54,205.49,36.87517356]
[1738710743399,0.03,205.54,205.51,36.87517356]
[1738710743552,1.0,205.52,205.45,36.87517356]
[1738710743757,36.87517356,205.48,205.44,0.12549]
[1738710743977,0.12549,205.49,205.32,17.0465]
[1738710744168,13.66282853,205.49,205.34,30.0]
[1738710744467,0.12549,205.48,205.37,20.0]
[1738710744666,0.03,205.51,205.37,20.0]
[1738710745151,0.03,205.51,205.4,0.12549]
[1738710745359,0.03,205.51,205.46,36.87517356]
[1738710745671,0.03,205.51,205.48,36.87517356]
[1738710745864,0.03,205.51,205.4,37.00066356]
[1738710746064,0.03,205.51,205.44,20.0]
[1738710746470,0.03,205.51,205.45,0.12549]
[1738710746694,0.03,205.51,205.44,20.0]
[1738710746861,0.03,205.51,205.41,4.8683]
[1738710747063,36.90517356,205.51,205.42,36.87517356]
[1738710747360,36.87517356,205.47,205.38,36.87517356]
[1738710747564,13.41184853,205.44,205.37,4.8691]
[1738710747767,13.41184853,205.44,205.36,36.87517356]
[1738710747984,36.87517356,205.47,205.38,36.87517356]
[1738710748185,36.87517356,205.49,205.42,36.87517356]
[1738710748881,36.90517356,205.51,205.42,36.87517356]
[1738710749081,13.41184853,205.43,205.34,36.87517356]
[1738710749378,36.87517356,205.46,205.36,36.87517356]
[1738710749883,0.03,205.51,205.43,36.87517356]
[1738710750062,0.09302175,205.46,205.41,36.87517356]
[1738710750383,13.41184853,205.45,205.37,36.87517356]
[1738710750787,0.09302175,205.46,205.39,36.87517356]
[1738710751571,0.09302175,205.46,205.41,36.87517356]
[1738710752466,0.09302175,205.46,205.43,36.87517356]
[1738710752784,0.09302175,205.46,205.45,36.87517356]
[1738710754359,0.09302175,205.46,205.45,41.74247356]
[1738710755382,0.09302175,205.46,205.45,42.74247356]
[1738710756356,0.12302175,205.46,205.45,42.74247356]
[1738710758985,0.12302175,205.46,205.42,36.87517356]
[1738710759165,0.12302175,205.46,205.44,36.87517356]
[1738710759984,0.12302175,205.46,205.45,0.37647]
[1738710760184,2.175e-05,205.46,205.45,0.50196]
[1738710760370,2.175e-05,205.51,205.5,1.0]
[1738710760574,2.175e-05,205.51,205.5,75.85640309]
[1738710761168,2.175e-05,205.51,205.5,110.72250309]
[1738710761369,2.175e-05,205.51,205.5,71.74127356]
[1738710762890,0.03,205.67,205.57,1.25098]
[1738710763108,0.03,205.67,205.64,41.73797356]
[1738710763572,0.03,205.67,205.64,36.87517356]
[1738710764278,0.03,205.67,205.62,36.87517356]
[1738710764695,0.03,205.67,205.64,36.87517356]
[1738710765066,0.03,205.67,205.64,41.73797356]
[1738710765286,0.03,205.67,205.66,20.0]
[1738710765494,0.03,205.67,205.66,56.87517356]
[1738710766088,0.03,205.67,205.62,36.87517356]
[1738710766569,0.03,205.67,205.66,36.87517356]
[1738710770204,0.13495941,205.67,205.66,36.87517356]
[1738710772803,6.0893,205.87,205.71,0.25098]
[1738710772971,0.03,205.88,205.83,36.87517356]
[1738710773176,0.03,205.88,205.85,36.87517356]
[1738710775502,0.03,205.88,205.83,36.87517356]
[1738710775699,0.03,205.88,205.85,56.87517356]
[1738710776080,0.03,205.88,205.85,57.60368035]
[1738710776417,0.03,205.88,205.85,56.87517356]
[1738710776578,0.03,205.88,205.85,61.73307356]
[1738710778800,0.03,205.88,205.85,62.46154421]
[1738710780293,0.03,205.88,205.85,61.73307356]
[1738710780705,0.03,205.88,205.85,36.87517356]
[1738710780882,0.03,205.88,205.83,36.87517356]
[1738710781285,0.03,205.88,205.81,41.73387356]
[1738710781492,13.44184853,205.88,205.81,41.73387356]
[1738710781743,13.44184853,205.86,205.79,41.73447356]
[1738710782196,0.03,205.86,205.81,36.87517356]
[1738710782383,0.03,205.86,205.83,36.87517356]
[1738710783298,0.03,205.86,205.79,36.87517356]
[1738710783615,37.00066356,205.83,205.75,36.87517356]
[1738710783799,36.87517356,205.81,205.73,36.87517356]
[1738710784311,36.87517356,205.81,205.73,41.73577356]
[1738710784523,36.87517356,205.83,205.75,36.87517356]
[1738710784698,13.66282853,205.82,205.75,36.87517356]
[1738710784893,13.53733853,205.82,205.75,36.87517356]
[1738710785286,13.41184853,205.82,205.75,41.73527356]
[1738710785593,13.53733853,205.83,205.77,36.87517356]
[1738710785999,0.03,205.86,205.81,36.87517356]
[1738710786187,0.03,205.86,205.85,36.87517356]
[1738710786390,1.9413,206.04,205.87,1.0]
[1738710786592,38.81647356,206.04,205.96,36.87517356]
[1738710786808,36.87517356,206.01,205.94,36.87517356]
[1738710787015,36.87517356,206.01,205.92,36.87517356]
[1738710787218,20.0,205.98,205.92,36.87517356]
[1738710787513,36.87517356,205.99,205.9,36.87517356]
[1738710787698,36.87517356,205.97,205.89,4.8568]
[1738710787895,36.87517356,205.97,205.88,36.87517356]
[1738710788410,13.41184853,205.96,205.88,36.87517356]
[1738710788607,13.41184853,205.94,205.86,36.87517356]
[1738710788818,36.87517356,205.93,205.86,36.87517356]
[1738710789018,13.41184853,205.94,205.86,36.87517356]
[1738710789394,5.8541,206.02,205.86,36.87517356]
[1738710789395,12.3161,206.07,205.92,36.87517356]
[1738710789606,1.9414,206.03,205.92,36.87517356]
[1738710789786,13.78831853,205.99,205.92,36.87517356]
[1738710789990,0.10363833,205.93,205.92,36.87517356]
[1738710790524,0.10363833,205.93,205.88,36.87517356]
[1738710790726,13.41184853,205.92,205.85,36.87517356]
[1738710791136,13.64097686,205.93,205.85,36.87517356]
[1738710791294,39.19434356,205.9,205.81,36.87517356]
[1738710791491,0.12549,205.86,205.8,30.0]
[1738710791795,0.12549,205.86,205.77,4.8596]
[1738710791796,13.41184853,205.84,205.77,36.87517356]
[1738710791996,38.81787356,205.9,205.81,36.87517356]
[1738710792308,6.0958,205.91,205.83,36.87517356]
[1738710792617,13.78831853,205.9,205.83,36.87517356]
[1738710793115,36.87517356,205.86,205.77,36.87517356]
[1738710793314,13.66282853,205.85,205.77,36.87517356]
[1738710793494,13.66282853,205.85,205.79,36.87517356]
[1738710794207,15.60592853,205.85,205.77,36.87517356]
[1738710794401,0.25098,205.83,205.76,0.063]
[1738710794610,13.41184853,205.79,205.76,0.063]
[1738710795320,1.9438,205.78,205.76,0.063]
[1738710795506,13.41184853,205.79,205.76,0.063]
[1738710795710,36.87517356,205.86,205.77,36.87517356]
[1738710796028,13.66282853,205.82,205.77,36.87517356]
[1738710796407,42.97097356,205.91,205.81,36.87517356]
[1738710796623,6.0958,205.91,205.86,36.87517356]
[1738710796791,6.0958,205.91,205.84,36.87517356]
[1738710797000,0.10363833,205.93,205.9,36.87517356]
[1738710797214,0.10363833,205.93,205.92,36.87517356]
[1738710798227,0.10363833,205.93,205.92,37.37713356]
[1738710798524,3.833e-05,205.93,205.92,37.37713356]
[1738710799801,0.25098,206.06,205.98,36.87517356]
[1738710800121,0.25098,206.04,205.98,36.87517356]
[1738710800704,0.25098,206.05,205.98,36.87517356]
[1738710801005,0.37647,206.05,205.98,36.87517356]
[1738710801514,0.25098,206.05,206.0,36.87517356]
[1738710801708,0.37647,206.05,205.98,36.87517356]
[1738710801914,13.41184853,206.02,205.94,36.87517356]
[1738710802811,13.41184853,206.02,205.96,36.87517356]
[1738710803128,0.12549,206.06,205.9,37.60338786]
[1738710803129,0.12549,206.06,206.0,36.87517356]
[1738710803314,13.78831853,206.06,206.0,36.87517356]
[1738710803507,13.41184853,206.04,205.98,36.87517356]
[1738710804902,13.44184853,206.04,205.98,36.87517356]
[1738710805318,1.9713,206.04,205.98,36.87517356]
[1738710805625,1.9713,206.04,205.96,36.87517356]
[1738710806631,52.22852209,206.03,205.96,36.87517356]
[1738710807734,15.35334853,206.03,205.96,36.87517356]
[1738710808116,0.03,206.04,205.98,36.87517356]
[1738710808314,0.03,206.04,206.0,36.87517356]
[1738710808906,0.03,206.04,206.02,36.87517356]
[1738710809518,0.03,206.04,206.0,36.87517356]
[1738710810043,0.09591409,206.03,206.02,36.87517356]
[1738710810613,0.09591409,206.03,206.02,37.60311788]
[1738710811227,0.09591409,206.03,206.02,42.45691788]
[1738710812324,0.09591409,206.03,206.02,41.72897356]
[1738710812636,0.10535457,206.05,206.02,41.72897356]
[1738710812637,0.00945146,206.05,206.04,20.0]
[1738710812932,0.00945146,206.05,206.04,57.60282824]
[1738710813333,0.00945146,206.05,206.04,63.45622824]
[1738710814128,0.00945146,206.05,206.04,42.45622824]
[1738710814444,0.00945146,206.05,206.0,36.87517356]
[1738710814633,0.00945146,206.05,206.04,36.87517356]
[1738710815013,0.00945146,206.05,206.02,36.87517356]
[1738710815215,0.00945146,206.05,206.0,56.87517356]
[1738710815516,0.00945146,206.05,206.0,36.87517356]
[1738710815841,0.00945146,206.05,205.98,41.72997356]
[1738710816215,0.00945146,206.05,206.0,36.87517356]
[1738710817741,0.00945146,206.05,205.98,36.87517356]
[1738710817742,36.88462502,206.05,205.98,36.87517356]
[1738710817939,36.87517356,206.01,205.94,36.87517356]
[1738710818143,36.87517356,206.01,205.92,36.87517356]
[1738710818318,36.87517356,206.01,205.93,30.0]
[1738710819024,1.9416,206.01,205.94,36.87517356]
[1738710820423,38.81667356,206.03,205.94,36.87517356]
[1738710821541,38.81667356,206.03,205.96,36.87517356]
[1738710821739,0.00945146,206.05,206.0,36.87517356]
[1738710822746,1.95065146,206.05,205.98,36.87517356]
[1738710823041,13.41184853,206.04,205.96,36.87517356]
[1738710823433,0.00945146,206.05,205.98,36.87517356]
[1738710824541,0.00945146,206.05,205.98,41.72977356]
[1738710824924,0.00945146,206.05,205.98,36.87517356]
[1738710825249,0.00945146,206.05,205.98,41.72997356]
[1738710825546,50.67294355,206.05,205.96,36.87517356]
[1738710825725,36.87517356,206.01,205.92,41.73137356]
[1738710825924,13.41184853,206.02,205.94,36.87517356]
[1738710827247,36.87517356,206.03,205.94,36.87517356]
[1738710827550,0.00945146,206.05,206.0,36.87517356]
[1738710828055,0.03,206.04,205.98,36.87517356]
[1738710830153,0.09239326,205.99,205.98,36.87517356]
[1738710830651,0.09239326,205.99,205.97,22.60332488]
[1738710831150,0.09239326,205.99,205.95,22.60332488]
[1738710832256,0.09239326,205.99,205.97,22.60332488]
[1738710833450,0.09239326,205.99,205.97,27.45822488]
[1738710837931,0.09239326,205.99,205.97,28.18627126]
[1738710838850,0.09239326,205.99,205.97,27.45822488]
[1738710839156,0.09239326,205.99,205.98,0.72804677]
[1738710839553,0.09239326,205.99,205.97,27.45822488]
[1738710840156,0.09239326,205.99,205.95,22.60332488]
[1738710840346,2.03429326,205.99,205.94,0.063]
[1738710841053,22.60332488,205.98,205.94,0.063]
[1738710841227,0.09239326,205.99,205.95,22.60332488]
[1738710842156,0.09239326,205.99,205.97,27.45822488]
[1738710842946,0.09239326,205.99,205.97,22.60332488]
[1738710843262,0.09239326,205.99,205.97,27.45822488]
[1738710843455,0.09239326,205.99,205.95,22.60332488]
[1738710843639,0.09239326,205.99,205.95,27.45882488]
[1738710845647,0.09239326,205.99,205.97,22.60332488]
[1738710846470,0.09239326,205.99,205.95,22.60332488]
[1738710846938,0.09239326,205.99,205.94,0.063]
[1738710847134,2.03419326,205.99,205.94,0.063]
[1738710847653,0.09239326,205.99,205.94,0.063]
[1738710847955,0.09239326,205.99,205.95,22.60332488]
[1738710848468,0.09239326,205.99,205.94,0.063]
[1738710848633,2.03419326,205.99,205.94,0.063]
[1738710849253,22.60332488,205.98,205.94,0.063]
[1738710850061,0.09140934,205.95,205.94,0.063]
[1738710855266,9.34e-06,205.95,205.94,1.063]
[1738710855444,0.09088874,205.98,205.96,20.0]
[1738710855768,8.874e-05,205.98,205.97,23.33126998]
[1738710856662,8.874e-05,205.98,205.97,75.93459486]
[1738710857041,8.874e-05,205.98,205.97,58.18626998]
[1738710857451,9.33e-05,205.99,205.97,58.68822998]
[1738710857742,6.732e-05,206.01,206.0,20.0]
[1738710857959,6.732e-05,206.01,206.0,72.60332488]
[1738710858963,6.732e-05,206.01,206.0,77.45762488]
[1738710862677,6.732e-05,206.01,206.0,57.45762488]